bitfinex/quotes_SOLUSD_20260114
["timestamp","ask_amount","ask_price","bid_price","bid_amount"]
[1768417434257,13.78832423,146.18,146.13,7.1060032]
[1768417434553,13.78832423,146.18,146.13,0.69374214]
[1768417436252,0.099,146.17,146.13,0.69374214]
[1768417436563,13.35303101,146.17,146.13,0.69374214]
[1768417436742,13.35303101,146.17,146.11,6.84380864]
[1768417436743,6.41226106,146.16,146.11,7.1060032]
[1768417436938,6.94076995,146.17,146.1,6.41226106]
[1768417436939,0.52636662,146.14,146.1,6.41226106]
[1768417437162,6.94726092,146.15,146.09,7.1060032]
[1768417437664,6.94726092,146.15,146.1,0.69374214]
[1768417438464,6.84275352,146.14,146.1,0.69374214]
[1768417439460,13.35401458,146.14,146.09,6.41226106]
[1768417440066,6.94290092,146.13,146.08,26.43137598]
[1768417440363,0.53063986,146.13,146.08,26.43137598]
[1768417440561,6.41226106,146.13,146.09,0.69374214]
[1768417440866,6.41226106,146.12,146.09,0.69374214]
[1768417441053,6.41226106,146.12,146.08,12.48]
[1768417441260,6.41226106,146.12,146.08,13.17374214]
[1768417441763,17.10620392,146.15,146.06,23.52802254]
[1768417441764,0.52636662,146.11,146.06,7.54012916]
[1768417441951,6.93862768,146.11,146.06,7.54012916]
[1768417442354,6.41226106,146.11,146.07,7.53968572]
[1768417442571,6.41226106,146.12,146.08,0.69374214]
[1768417442739,6.84290435,146.14,146.08,0.69374214]
[1768417442948,13.25516541,146.14,146.09,0.69374214]
[1768417443671,13.35416541,146.14,146.09,0.69374214]
[1768417444050,6.41226106,146.13,146.09,0.69374214]
[1768417444238,6.41226106,146.12,146.08,0.69374214]
[1768417444870,6.41226106,146.1,146.06,0.69374214]
[1768417445074,6.41226106,146.09,146.04,7.54106261]
[1768417445446,0.51807358,146.07,146.02,0.69374214]
[1768417445662,6.52801807,146.06,146.02,0.69374214]
[1768417445974,6.49801807,146.06,146.02,0.69374214]
[1768417446652,6.46801807,146.06,146.02,0.69374214]
[1768417448149,0.11575701,146.06,146.02,0.69374214]
[1768417448344,6.41226106,146.07,146.03,0.69374214]
[1768417448549,13.25776301,146.09,146.04,0.69374214]
[1768417448975,6.41226106,146.08,146.04,0.69374214]
[1768417449171,6.41226106,146.08,146.05,0.69374214]
[1768417449378,6.41226106,146.09,146.05,0.69374214]
[1768417449675,6.93862768,146.07,146.03,7.54150693]
[1768417449853,0.52636662,146.07,146.03,7.54150693]
[1768417450049,6.93862768,146.07,146.03,7.54150693]
[1768417450252,6.93862768,146.07,146.02,0.69374214]
[1768417450455,6.41226106,146.06,146.02,0.69374214]
[1768417450673,6.93862768,146.07,146.02,0.69374214]
[1768417450875,6.41226106,146.07,146.03,0.69374214]
[1768417451375,6.41226106,146.1,146.05,0.69374214]
[1768417451869,0.53499986,146.11,146.05,0.69374214]
[1768417452082,6.41226106,146.1,146.06,0.69374214]
[1768417452868,6.41226106,146.09,146.04,7.1060032]
[1768417453245,13.25748979,146.09,146.04,0.69374214]
[1768417453475,6.41226106,146.09,146.05,0.69374214]
[1768417453872,13.25750058,146.09,146.05,0.69374214]
[1768417454378,6.51557746,146.08,146.03,7.54154197]
[1768417454571,6.93862768,146.07,146.02,19.32820788]
[1768417454771,6.93862768,146.07,146.02,13.17374214]
[1768417454963,6.93862768,146.07,146.02,20.02203625]
[1768417455274,6.41226106,146.06,146.02,13.17374214]
[1768417455474,6.41226106,146.06,146.02,0.69374214]
[1768417455668,6.51980796,146.06,146.02,0.69374214]
[1768417455970,6.41226106,146.05,146.01,0.69374214]
[1768417456181,6.51980796,146.06,146.01,7.54251091]
[1768417456677,6.41226106,146.05,146.01,7.54251091]
[1768417456879,6.51980796,146.06,146.01,7.54251091]
[1768417457183,13.36634089,146.06,146.01,7.54251091]
[1768417457754,6.41226106,146.06,146.02,0.69374214]
[1768417457954,13.2587632,146.06,146.02,0.69374214]
[1768417458272,6.41226106,146.06,146.02,0.69374214]
[1768417458453,13.25876905,146.06,146.02,0.69374214]
[1768417460863,0.099,146.07,146.02,0.69374214]
[1768417461069,5.44308856,146.1,146.03,0.66026324]
[1768417461375,5.44308856,146.1,146.04,0.66026324]
[1768417461579,6.41226106,146.09,146.04,0.66026324]
[1768417463377,13.7884495,146.09,146.04,0.66026324]
[1768417463578,6.41226106,146.08,146.04,0.66026324]
[1768417464380,6.41226106,146.07,146.04,0.66026324]
[1768417465661,6.41226106,146.07,146.02,0.66026324]
[1768417465662,13.78474524,146.07,146.02,0.66026324]
[1768417465860,6.41226106,146.06,146.02,0.66026324]
[1768417466187,13.79261008,146.09,146.04,0.66026324]
[1768417466395,6.41226106,146.07,146.02,13.92071231]
[1768417466591,6.41226106,146.07,146.03,0.66026324]
[1768417466884,6.51126106,146.08,146.03,0.66026324]
[1768417467685,6.84603272,146.07,146.03,0.66026324]
[1768417467882,7.37667258,146.07,146.03,0.66026324]
[1768417468061,13.78893364,146.07,146.03,0.66026324]
[1768417469282,5.34408856,146.1,146.04,0.66026324]
[1768417469283,22.55519129,146.1,146.04,0.66026324]
[1768417469460,6.84526643,146.09,146.05,0.66026324]
[1768417469665,9.36363926,146.09,146.05,0.66026324]
[1768417469978,9.89427912,146.09,146.05,0.66026324]
[1768417470481,9.36363926,146.09,146.05,0.66026324]
[1768417470683,9.89427912,146.09,146.05,0.66026324]
[1768417471268,3.93453877,146.08,146.05,0.66026324]
[1768417471659,11.30738741,146.07,146.03,0.66026324]
[1768417471875,3.93453877,146.06,146.03,0.66026324]
[1768417472077,3.93453877,146.06,146.01,0.66026324]
[1768417472287,3.93453877,146.06,146.02,0.66026324]
[1768417473074,4.04208567,146.06,146.01,3.93453877]
[1768417473283,3.93453877,146.06,146.01,0.66026324]
[1768417473891,10.78108651,146.06,146.02,0.66026324]
[1768417475781,10.78063188,146.07,146.03,0.66026324]
[1768417476090,23.26039892,146.08,146.03,0.66026324]
[1768417476875,19.32586015,146.08,146.05,0.66026324]
[1768417477396,6.84586015,146.08,146.05,0.66026324]
[1768417479788,10.78039892,146.08,146.05,0.66026324]
[1768417480384,3.93453877,146.07,146.05,0.66026324]
[1768417480908,15.1,146.29,146.06,20.34907754]
[1768417481098,6.8380441,146.25,146.16,3.93453877]
[1768417481307,0.1,146.29,146.17,12.48]
[1768417481308,0.76643358,146.29,146.17,12.48]
[1768417481481,6.83623752,146.28,146.17,45.47669023]
[1768417481796,0.76643358,146.29,146.25,3.93453877]
[1768417481976,0.76643358,146.29,146.18,23.94308386]
[1768417481977,0.1,146.31,146.18,23.94308386]
[1768417481978,0.76643358,146.31,146.18,23.94308386]
[1768417482178,0.66643358,146.29,146.18,23.94308386]
[1768417482375,0.66643358,146.3,146.23,3.93453877]
[1768417482600,0.1,146.31,146.27,3.93453877]
[1768417482806,4.03453877,146.36,146.27,0.66026324]
[1768417482985,0.1,146.36,146.3,3.93453877]
[1768417483185,4.03453877,146.36,146.3,3.93453877]
[1768417483495,6.93112168,146.39,146.32,10.39900584]
[1768417483690,0.1,146.39,146.33,10.39900584]
[1768417483888,0.1,146.39,146.3,20.05956983]
[1768417483889,0.1,146.39,146.34,10.39900584]
[1768417484091,0.1,146.39,146.34,0.66026324]
[1768417484281,0.1,146.39,146.35,10.39900584]
[1768417484487,0.1,146.39,146.33,12.48]
[1768417484692,0.1,146.39,146.34,10.39900584]
[1768417484890,0.1,146.39,146.36,10.39900584]
[1768417485110,0.1,146.39,146.37,10.39900584]
[1768417485499,4.44444794,146.42,146.38,10.39900584]
[1768417485714,0.66643358,146.43,146.39,10.39900584]
[1768417486012,0.66643358,146.45,146.4,10.39900584]
[1768417486219,0.66643358,146.45,146.38,0.56643358]
[1768417486386,0.1,146.46,146.39,0.56643358]
[1768417486586,0.1,146.46,146.4,0.56643358]
[1768417486804,0.76643358,146.46,146.41,12.48]
[1768417487006,0.76643358,146.46,146.41,22.87900584]
[1768417487214,0.76643358,146.46,146.42,10.39900584]
[1768417487716,0.66643358,146.42,146.35,0.56643358]
[1768417487903,11.06543942,146.41,146.36,10.39900584]
[1768417488216,11.06543942,146.41,146.35,0.56643358]
[1768417488511,11.06543942,146.41,146.36,10.39900584]
[1768417488817,0.66643358,146.44,146.39,10.96543942]
[1768417488993,11.16543942,146.46,146.4,10.39900584]
[1768417489188,0.66643358,146.45,146.4,10.39900584]
[1768417489407,10.39900584,146.44,146.39,0.56643358]
[1768417491011,10.39900584,146.45,146.4,0.56643358]
[1768417491714,0.1,146.46,146.4,0.56643358]
[1768417491896,10.39900584,146.45,146.4,0.56643358]
[1768417492221,0.1,146.46,146.4,17.79568459]
[1768417492401,10.49900584,146.46,146.4,17.79568459]
[1768417492715,10.39900584,146.45,146.4,0.56643358]
[1768417492887,0.77969519,146.46,146.41,6.83013455]
[1768417493094,11.17870103,146.46,146.41,6.83013455]
[1768417493295,0.1,146.46,146.42,0.56643358]
[1768417494319,0.67969519,146.48,146.43,0.56643358]
[1768417494320,10.39900584,146.48,146.43,0.56643358]
[1768417494812,11.07870103,146.49,146.43,10.96543942]
[1768417495015,11.07870103,146.49,146.43,0.56643358]
[1768417495197,11.07870103,146.49,146.43,10.96543942]
[1768417495393,17.51512913,146.52,146.45,10.86543942]
[1768417495394,10.39900584,146.5,146.45,10.86543942]
[1768417495705,10.39900584,146.5,146.45,0.46643358]
[1768417495908,10.39900584,146.5,146.42,19.28963671]
[1768417495909,11.07870103,146.47,146.42,12.46]
[1768417496089,10.39900584,146.46,146.42,12.46]
[1768417496289,11.07870103,146.47,146.42,12.46]
[1768417496492,11.07870103,146.47,146.42,6.82965609]
[1768417496717,11.07870103,146.47,146.42,19.28965609]
[1768417497297,10.72311062,146.47,146.42,19.94297484]
[1768417497612,10.39900584,146.47,146.42,19.94296644]
[1768417497910,6.82650935,146.49,146.42,19.94296644]
[1768417498112,10.39900584,146.47,146.43,12.46]
[1768417498720,10.39900584,146.48,146.43,12.46]
[1768417498893,10.39900584,146.47,146.43,12.46]
[1768417499094,10.39900584,146.48,146.43,12.46]
[1768417499404,10.39900584,146.48,146.47,0.71437628]
[1768417499405,0.67969519,146.48,146.47,0.71437628]
[1768417499592,0.67969519,146.48,146.43,13.11331875]
[1768417500195,0.67969519,146.46,146.32,0.65331875]
[1768417500496,0.67969519,146.46,146.31,34.17217369]
[1768417500497,10.39900584,146.4,146.37,0.65331875]
[1768417500698,10.39900584,146.38,146.35,0.65331875]
[1768417501009,13.13969519,146.45,146.38,0.65331875]
[1768417501226,10.39900584,146.44,146.39,0.65331875]
[1768417501524,11.07870103,146.45,146.4,0.65331875]
[1768417501722,7.50703184,146.47,146.4,0.65331875]
[1768417501898,19.96647424,146.49,146.41,0.65331875]
[1768417502211,19.96647424,146.49,146.43,0.65331875]
[1768417502212,10.39900584,146.48,146.43,0.65331875]
[1768417502515,10.39900584,146.47,146.43,0.65331875]
[1768417502925,10.39900584,146.47,146.34,10.09384794]
[1768417502926,0.67969519,146.43,146.34,10.09384794]
[1768417503094,0.67969519,146.47,146.27,6.83657113]
[1768417503095,0.67969519,146.34,146.27,6.83657113]
[1768417503290,0.67969519,146.34,146.21,70.10848756]
[1768417503291,0.67969519,146.34,146.28,6.83620362]
[1768417503517,0.67969519,146.34,146.24,12.46]
[1768417503720,12.46,146.38,146.26,17.09193137]
[1768417503895,12.46,146.38,146.28,10.39900584]
[1768417504094,12.46,146.38,146.28,12.46]
[1768417504300,10.39900584,146.36,146.28,19.29618365]
[1768417504621,17.80408856,146.4,146.29,10.39900584]
[1768417504921,11.07870103,146.36,146.29,11.05232459]
[1768417505101,10.39900584,146.35,146.29,0.65331875]
[1768417505820,10.39900584,146.34,146.29,0.65331875]
[1768417506317,11.07870103,146.33,146.28,12.46]
[1768417506632,10.39900584,146.31,146.25,23.51232459]
[1768417506916,0.67969519,146.32,146.26,0.65331875]
[1768417507121,10.39900584,146.33,146.28,0.65331875]
[1768417507617,0.67969519,146.34,146.28,0.65331875]
[1768417507618,10.39900584,146.32,146.28,0.65331875]
[1768417508221,10.39900584,146.32,146.22,5.34408856]
[1768417508222,10.39900584,146.3,146.24,0.65331875]
[1768417508404,11.07870103,146.3,146.25,12.46]
[1768417508601,11.07870103,146.3,146.24,17.89002503]
[1768417508904,11.07870103,146.3,146.21,29.514521]
[1768417508905,11.07870103,146.25,146.21,29.514521]
[1768417509222,0.67969519,146.27,146.2,0.65331875]
[1768417509530,10.39900584,146.24,146.2,0.65331875]
[1768417509704,10.39900584,146.22,146.18,0.65331875]
[1768417509902,7.51779269,146.24,146.18,0.65331875]
[1768417509903,0.67969519,146.24,146.18,0.65331875]
[1768417510103,10.39900584,146.23,146.18,0.65331875]
[1768417510910,10.39900584,146.22,146.16,30.35411508]
[1768417511099,10.39900584,146.22,146.16,19.95510924]
[1768417511298,10.39900584,146.2,146.14,7.49594354]
[1768417511518,10.39900584,146.19,146.14,11.05232459]
[1768417512025,10.39900584,146.2,146.14,17.894698]
[1768417512216,0.67969519,146.21,146.16,10.39900584]
[1768417512606,0.67969519,146.21,146.15,0.65331875]
[1768417512919,11.07870103,146.21,146.15,11.05232459]
[1768417513229,11.07870103,146.21,146.16,6.84181718]
[1768417513724,10.39900584,146.2,146.16,6.84181718]
[1768417514035,10.39900584,146.19,146.15,0.65331875]
[1768417514510,11.07870103,146.18,146.13,0.65331875]
[1768417514702,11.07870103,146.18,146.13,13.11331875]
[1768417514905,11.07870103,146.18,146.14,6.84263283]
[1768417515123,0.67969519,146.18,146.14,6.84263283]
[1768417515629,0.67969519,146.18,146.13,30.35545484]
[1768417516326,10.39900584,146.17,146.13,13.11331875]
[1768417516634,11.07870103,146.18,146.13,12.46]
[1768417516835,11.07870103,146.18,146.12,7.49689608]
[1768417517039,0.67969519,146.2,146.15,10.39900584]
[1768417517334,0.67969519,146.2,146.14,0.65331875]
[1768417517335,10.39900584,146.18,146.14,0.65331875]
[1768417517913,11.07870103,146.19,146.14,0.65331875]
[1768417518108,11.07870103,146.19,146.14,7.49601007]
[1768417518520,11.07870103,146.19,146.14,0.65331875]
[1768417518721,10.39900584,146.18,146.14,0.65331875]
[1768417519131,10.39900584,146.18,146.13,6.84317953]
[1768417519312,10.39900584,146.18,146.13,17.89550412]
[1768417519513,10.39900584,146.18,146.13,7.49649828]
[1768417520436,0.65387525,146.23,146.14,0.69025762]
[1768417520613,11.05288109,146.2,146.14,11.08926346]
[1768417521014,11.05288109,146.2,146.15,0.67166916]
[1768417521431,11.0702938,146.22,146.17,0.67166916]
[1768417521639,7.50951811,146.24,146.18,0.67166916]
[1768417521818,0.67128796,146.26,146.19,0.67166916]
[1768417522022,10.39900584,146.23,146.19,0.67166916]
[1768417523338,0.67128796,146.27,146.2,0.67166916]
[1768417523543,11.0702938,146.26,146.2,11.070675]
[1768417523750,0.67128796,146.28,146.21,11.070675]
[1768417523926,11.0702938,146.27,146.21,11.070675]
[1768417524622,11.0702938,146.26,146.21,0.67166916]
[1768417525342,0.67128796,146.26,146.21,17.90977691]
[1768417526022,11.0702938,146.26,146.21,7.51077107]
[1768417526417,0.67128796,146.25,146.2,12.46]
[1768417526646,11.0702938,146.22,146.17,6.84111648]
[1768417526944,11.0702938,146.22,146.17,19.30111648]
[1768417527140,0.67128796,146.21,146.17,12.46]
[1768417527346,10.39900584,146.19,146.14,23.530675]
[1768417527531,10.39900584,146.19,146.14,13.13166916]
[1768417527841,0.67128796,146.2,146.15,0.67166916]
[1768417528140,10.39900584,146.21,146.17,6.84132658]
[1768417528845,11.0702938,146.21,146.17,6.84132658]
[1768417529632,10.39900584,146.2,146.16,6.84163829]
[1768417531621,10.39900584,146.19,146.15,0.67166916]
[1768417531822,10.39900584,146.19,146.14,12.46]
[1768417531823,10.39900584,146.18,146.14,12.46]
[1768417532035,11.0702938,146.18,146.14,12.46]
[1768417533330,7.08476125,146.2,146.15,0.67166916]
[1768417534840,0.67128796,146.2,146.15,0.67166916]
[1768417536429,0.67128796,146.2,146.15,7.51382373]
[1768417537043,6.41347329,146.17,146.12,7.51516482]
[1768417537243,6.41347329,146.17,146.12,19.99516482]
[1768417537444,0.67128796,146.18,146.12,19.99516482]
[1768417537445,6.41347329,146.16,146.12,19.99516482]
[1768417538333,7.08476125,146.16,146.12,19.32349566]
[1768417539038,23.93817111,146.21,146.09,28.03652696]
[1768417539338,6.41347329,146.1,146.03,0.87166916]
[1768417539536,7.08476125,146.06,146.0,6.51077162]
[1768417540146,0.67128796,146.06,146.0,6.51077162]
[1768417540339,7.51700118,146.08,146.01,6.41347329]
[1768417540542,13.93047447,146.08,146.01,6.41347329]
[1768417540734,0.67128796,146.07,146.01,6.41347329]
[1768417541049,0.67128796,146.07,146.02,6.41347329]
[1768417541258,0.67128796,146.07,146.02,13.261747]
[1768417541642,0.67128796,146.07,146.03,12.48]
[1768417542041,0.67128796,146.09,146.04,6.41347329]
[1768417542755,0.67128796,146.09,146.05,6.84697021]
[1768417542959,7.51466912,146.13,146.07,6.41347329]
[1768417543254,0.67128796,146.12,146.07,12.48]
[1768417543432,7.08476125,146.14,146.08,6.5645045]
[1768417543636,0.67128796,146.14,146.09,6.41347329]
[1768417543833,7.08476125,146.14,146.08,6.5645045]
[1768417544036,0.67128796,146.13,146.08,6.41347329]
[1768417544340,0.67128796,146.15,146.11,6.41347329]
[1768417544533,0.67128796,146.17,146.12,12.48]
[1768417544736,7.08476125,146.17,146.12,12.48]
[1768417545138,0.67128796,146.16,146.12,19.3235346]
[1768417545953,0.67128796,146.16,146.12,25.73700789]
[1768417546571,0.67128796,146.16,146.13,6.41347329]
[1768417547144,0.96562556,146.18,146.13,13.25644296]
[1768417548176,0.96562556,146.18,146.14,6.41347329]
[1768417548779,0.96562556,146.18,146.15,12.48]
[1768417549785,0.96562556,146.18,146.15,19.32228317]
[1768417550159,0.2943376,146.18,146.15,25.73575646]
[1768417550469,7.38148146,146.18,146.14,19.32267486]
[1768417551180,0.2943376,146.18,146.14,25.88717936]
[1768417552563,0.2943376,146.18,146.14,19.32267486]
[1768417552890,0.67367057,146.17,146.14,19.32267486]
[1768417554962,0.2943376,146.18,146.14,19.32267486]
[1768417555369,0.2943376,146.18,146.14,25.73614815]
[1768417555575,0.2943376,146.18,146.14,19.32267486]
[1768417556096,0.96800817,146.18,146.14,19.32267486]
[1768417556982,7.38148146,146.18,146.14,19.32267486]
[1768417557186,0.96800817,146.18,146.14,19.32267486]
[1768417559396,0.96800817,146.18,146.14,25.73614815]
[1768417559800,0.96800817,146.18,146.14,42.84303196]
[1768417560088,0.2943376,146.18,146.14,42.84303196]
[1768417560289,0.2943376,146.18,146.15,6.41347329]
[1768417560594,0.96800817,146.18,146.14,19.32267486]
[1768417561159,0.2943376,146.18,146.15,6.5645045]
[1768417561366,0.67367057,146.22,146.18,6.41347329]
[1768417561587,0.67367057,146.22,146.19,12.48]
[1768417561890,0.67367057,146.26,146.21,6.41347329]
[1768417562191,0.67367057,146.27,146.22,18.89347329]
[1768417562399,0.67367057,146.27,146.22,12.48]
[1768417562567,0.67367057,146.25,146.22,12.48]
[1768417563493,0.67367057,146.24,146.22,12.48]
[1768417564283,7.41176944,146.25,146.22,10.305]
[1768417564581,6.41347329,146.24,146.22,10.305]
[1768417564787,6.41347329,146.23,146.18,13.16067775]
[1768417564975,6.83780065,146.25,146.17,12.48]
[1768417564976,6.41347329,146.2,146.17,12.48]
[1768417565404,6.41347329,146.19,146.16,0.68067775]
[1768417565994,6.41347329,146.19,146.15,6.84199721]
[1768417566199,6.41347329,146.19,146.16,6.8417723]
[1768417566706,17.09401709,146.25,146.16,7.52245005]
[1768417566891,6.41347329,146.19,146.16,0.68067775]
[1768417567274,6.41347329,146.21,146.16,0.68067775]
[1768417567474,6.41347329,146.22,146.17,0.68067775]
[1768417568513,6.41347329,146.22,146.17,7.52157346]
[1768417568808,6.41347329,146.22,146.18,0.68067775]
[1768417571095,6.41347329,146.22,146.18,7.52136397]
[1768417572408,6.41347329,146.21,146.18,0.68067775]
[1768417572877,6.41347329,146.19,146.13,0.68067775]
[1768417573075,12.46,146.22,146.15,0.68067775]
[1768417573275,6.41347329,146.19,146.15,0.68067775]
[1768417574085,12.46,146.22,146.15,0.68067775]
[1768417574396,6.41347329,146.2,146.15,7.52289423]
[1768417574609,6.41347329,146.19,146.15,7.52289423]
[1768417574990,6.83987251,146.21,146.16,0.68067775]
[1768417575308,6.41347329,146.2,146.16,0.68067775]
[1768417575509,6.41347329,146.19,146.16,0.68067775]
[1768417576181,6.41347329,146.2,146.17,0.68067775]
[1768417577098,6.41347329,146.19,146.17,0.68067775]
[1768417577502,6.41347329,146.21,146.17,7.52201002]
[1768417578480,6.41347329,146.21,146.17,0.68067775]
[1768417579914,6.83825668,146.24,146.18,0.68067775]
[1768417580087,13.25172997,146.24,146.19,0.68067775]
[1768417580786,6.41347329,146.23,146.19,0.68067775]
[1768417580982,6.41347329,146.26,146.2,0.7064948]
[1768417581206,6.41347329,146.26,146.21,0.7064948]
[1768417581399,6.41347329,146.27,146.22,0.7064948]
[1768417582117,6.41347329,146.29,146.24,0.7064948]
[1768417582419,6.41347329,146.31,146.26,0.7064948]
[1768417582709,12.58,146.33,146.27,0.7064948]
[1768417582710,13.24780899,146.32,146.27,0.7064948]
[1768417583284,6.41347329,146.31,146.27,0.7064948]
[1768417583617,6.8343357,146.32,146.24,0.7064948]
[1768417583618,6.41347329,146.29,146.24,0.7064948]
[1768417583914,23.92017495,146.32,146.24,0.7064948]
[1768417584109,6.41347329,146.29,146.24,0.7064948]
[1768417584617,6.41347329,146.26,146.21,7.54584028]
[1768417584992,6.41347329,146.27,146.23,0.7064948]
[1768417585320,13.24981761,146.28,146.24,0.7064948]
[1768417585694,6.41347329,146.28,146.24,0.7064948]
[1768417585893,13.24930872,146.29,146.24,0.7064948]
[1768417586107,6.41347329,146.28,146.24,0.7064948]
[1768417588312,13.25000638,146.28,146.24,0.7064948]
[1768417588699,13.24937708,146.29,146.24,7.54450601]
[1768417589024,6.41347329,146.28,146.24,0.7064948]
[1768417589840,23.92353175,146.3,146.24,0.7064948]
[1768417590040,6.41347329,146.28,146.24,0.7064948]
[1768417591140,23.92353175,146.3,146.25,0.7064948]
[1768417591141,6.41347329,146.29,146.25,0.7064948]
[1768417591305,0.1,146.33,146.27,0.7064948]
[1768417591515,0.1,146.33,146.28,0.7064948]
[1768417591839,0.1,146.33,146.32,0.7064948]
[1768417592013,1.76376863,146.35,146.33,0.7064948]
[1768417592207,1.76376863,146.35,146.33,0.6464948]
[1768417592513,15.01029049,146.35,146.29,13.24905412]
[1768417592712,6.41347329,146.34,146.28,18.87347329]
[1768417593108,6.41347329,146.34,146.28,25.70930234]
[1768417593434,8.5968172,146.35,146.29,6.83566877]
[1768417593611,6.41347329,146.34,146.29,6.83566877]
[1768417594211,8.5968172,146.35,146.3,0.7064948]
[1768417594409,15.01029049,146.35,146.3,0.7064948]
[1768417594608,8.17724192,146.35,146.3,7.54146011]
[1768417594949,1.76376863,146.35,146.31,0.7064948]
[1768417595842,18.99577664,146.35,146.31,0.7064948]
[1768417596023,12.16283111,146.35,146.31,0.7064948]
[1768417596228,12.16283111,146.35,146.31,7.54126567]
[1768417596432,1.76376863,146.35,146.31,7.54126567]
[1768417596736,1.76376863,146.35,146.32,0.7064948]
[1768417598838,1.76376863,146.35,146.33,0.7064948]
[1768417599830,1.76376863,146.35,146.29,11.10555728]
[1768417599831,12.2630269,146.35,146.29,11.10555728]
[1768417600029,10.39906248,146.34,146.3,0.7064948]
[1768417600234,10.39906248,146.32,146.28,0.7064948]
[1768417600539,6.83383838,146.34,146.29,0.7064948]
[1768417600733,10.39906248,146.33,146.29,0.7064948]
[1768417601434,10.39906248,146.33,146.27,17.23557149]
[1768417601435,10.39906248,146.32,146.27,0.7064948]
[1768417601744,10.39906248,146.31,146.26,0.7064948]
[1768417602125,10.39906248,146.31,146.27,0.7064948]
[1768417602326,10.49806248,146.32,146.27,0.7064948]
[1768417602625,17.33276926,146.32,146.27,0.7064948]
[1768417603437,17.33276926,146.32,146.26,0.7064948]
[1768417603438,10.39906248,146.3,146.26,0.7064948]
[1768417604632,10.39906248,146.29,146.24,7.54446217]
[1768417605345,10.39906248,146.29,146.25,7.54407553]
[1768417605540,17.23399942,146.31,146.26,7.54342595]
[1768417605732,17.23399942,146.31,146.26,0.7064948]
[1768417605932,19.29441911,146.32,146.27,0.7064948]
[1768417606140,29.69348159,146.32,146.27,0.7064948]
[1768417606745,22.85906248,146.32,146.28,0.7064948]
[1768417606945,29.69343604,146.32,146.28,0.7064948]
[1768417609263,19.29437356,146.32,146.28,0.7064948]
[1768417609547,17.23258822,146.34,146.29,0.7064948]
[1768417609732,6.83352574,146.34,146.29,0.7064948]
[1768417609936,17.23258822,146.34,146.29,0.7064948]
[1768417610441,8.59687872,146.35,146.3,0.71294536]
[1768417610645,12.16283111,146.35,146.3,0.71294536]
[1768417611267,22.52326331,146.38,146.3,0.71294536]
[1768417611268,6.93172407,146.38,146.33,7.54669466]
[1768417611550,17.33078655,146.38,146.34,0.71294536]
[1768417611730,10.49906248,146.38,146.34,0.71294536]
[1768417611930,0.1,146.38,146.34,0.71294536]
[1768417612740,6.93154397,146.38,146.34,0.71294536]
[1768417613460,0.1,146.38,146.35,0.71294536]
[1768417613632,0.1,146.38,146.35,0.65294536]
[1768417617950,6.93169047,146.38,146.35,0.65294536]
[1768417618157,0.1,146.38,146.35,0.65294536]
[1768417618361,10.39906248,146.37,146.32,0.71294536]
[1768417619558,17.23124047,146.37,146.32,0.71294536]
[1768417620345,17.44884454,146.37,146.32,0.71294536]
[1768417621347,17.44884454,146.37,146.32,7.54714068]
[1768417621547,17.44884454,146.37,146.33,0.71294536]
[1768417621748,17.23124047,146.37,146.33,0.71294536]
[1768417622258,0.1,146.38,146.33,0.71294536]
[1768417622566,0.1,146.38,146.36,11.11200784]
[1768417622862,0.1,146.38,146.37,0.71294536]
[1768417623162,0.1,146.4,146.38,0.71294536]
[1768417624653,0.1,146.4,146.39,0.71294536]
[1768417624857,1e-08,146.4,146.39,0.71294536]
[1768417625660,1e-08,146.4,146.39,11.11200784]
[1768417625862,1e-08,146.4,146.39,0.71294536]
[1768417626044,1e-08,146.4,146.39,17.94307553]
[1768417626764,1e-08,146.4,146.37,10.39906248]
[1768417626964,1e-08,146.4,146.37,11.11200784]
[1768417627266,0.10333227,146.4,146.35,17.94478373]
[1768417627450,10.50239475,146.4,146.35,7.54572125]
[1768417628162,17.3331319,146.4,146.35,7.54572125]
[1768417628639,10.71256354,146.39,146.34,6.83310102]
[1768417628844,10.50449643,146.38,146.33,13.17294536]
[1768417629062,10.39906248,146.36,146.31,0.71294536]
[1768417629456,10.39906248,146.36,146.31,7.5474672]
[1768417630267,17.23159941,146.36,146.31,7.5474672]
[1768417630464,0.30938111,146.35,146.3,0.71294536]
[1768417630673,10.39906248,146.34,146.3,0.71294536]
[1768417630840,17.55159941,146.36,146.31,0.71294536]
[1768417631045,10.39906248,146.36,146.31,0.71294536]
[1768417631247,10.39906248,146.36,146.31,7.5476927]
[1768417632058,17.33023841,146.37,146.32,0.71294536]
[1768417632951,17.23158581,146.36,146.31,6.83474734]
[1768417633263,17.23158581,146.36,146.31,7.5476927]
[1768417634753,6.83252333,146.36,146.31,7.5476927]
[1768417635073,10.50025038,146.35,146.3,7.54818768]
[1768417635274,10.39906248,146.35,146.31,0.71294536]
[1768417635457,10.39906248,146.34,146.31,0.71294536]
[1768417635951,10.39906248,146.35,146.31,0.71294536]
[1768417636871,0.31350106,146.31,146.27,61.5]
[1768417637079,0.31350106,146.31,146.26,7.54973215]